[Event "Bangabandhu Premier Div League 2022"]
[Site "Dhaka"]
[Date "2022.11.30"]
[Round "1.14"]
[White "Habibur Rahman, Sohel"]
[Black "Ahmed, Shafiq"]
[Result "0-1"]
[ECO "C00"]
[WhiteElo "1871"]
[BlackElo "2092"]
[Annotator "TA"]
[PlyCount "174"]
[EventDate "2022.11.30"]
[EventType "team-tourn"]
[EventCountry "BAN"]
[SourceTitle "playchess.com"]
[Source "ChessBase"]
[SourceQuality "1"]
[TimeControl "40/5400+30:1800+30"]

{[%evp 10,174,0,-31,0,-39,-38,-47,-50,-56,-45,-167,0,-48,0,-112,0,-49,0,-79,-86,-70,-44,-98,-48,-105,0,-95,0,-104,-22,-177,0,-100,0,-179,0,-124,0,-158,0,-107,0,-172,0,-93,0,-142,0,-72,0,-154,0,-77,0,-37,1,-24,-30,-84,0,-21,0,-39,-20,-20,102,-43,0,-23,-20,-1545,0,-29,0,-1530,0,-20,0,-19,-16,-13,1627,-14,0,-13,-12,-29,-26,-33,57,-195,0,-19,37,-195,0,-46,47,-200,0,-35,-23,-75,-77,-67,-79,-79,-79,-78,-75,-75,-73,-133,-136,-155,-160,-142,-147,-257,0,-96,0,-254,0,-106,0,-237,0,-97,0,-226,0,-102,0,-146,-109,-339,-252,-250,-252,-810,30,-613,0,-764,30,-550,0,-761,-393,-513,0,-667,0,-900,-865,-864,-845,-725,-702,-5615,-5808,-5471,-5457,-11270,-5010]} 1. e4 {[%emt 0:00:09]} e6 {[%emt 0:00:10]} 2. Bc4 d5 3. exd5 exd5 4. Bd3 Nf6 {[%emt 0:04:17]} 5. Bc4 {[%emt 0:02:50]} Ng8 {[%emt 0:00:02]} 6. Bb3 Nf6 {[%emt 0:03:52] C00: French: Unusual White 2nd moves.} (6... a5 $5 {[%cal Ra5a4]} 7. Nc3 (7. Qe2+ Be7 $15) 7... Nf6 $11) 7. d3 {[%emt 0:02:09]} (7. Bc4 $5) 7... Bd6 {[%emt 0:01:06]} 8. h3 O-O {[%emt 0:00:13] Black is slightly better.} 9. Ne2 Nbd7 {[%emt 0:00:47]} 10. Ng1 {[%emt 1:30:22]} (10. O-O $15) 10... Nb8 {[%emt 0:00:13]} (10... a5 $19 {Hoping for ...a4.} 11. a3 a4) 11. Ne2 $1 $15 Nbd7 {[%emt 0:00:30]} (11... a5 $15 12. c3 Bf5) 12. Ng1 $17 {[%emt 0:01:00]} Nb8 {[%emt 0:00:30]} (12... Nc5 $17 13. Ne2 Re8) 13. Ne2 $1 $15 {[#]} Nbd7 $146 {[%emt 0:04:45]} (13... Re8 $15 {should be considered.}) ({Predecessor:} 13... Re8 14. O-O Bf5 15. Bg5 c6 16. Nbc3 Nbd7 17. a3 Qc7 18. Qd2 h6 19. Bf4 Re7 20. Bxd6 Qxd6 21. Nd4 Bg6 22. Rae1 Rae8 23. Nf3 Rxe1 24. Rxe1 Rxe1+ 25. Qxe1 Nc5 {1-0 (31) Habibur,R (1933)-Reasat,E (1849) Dhaka 2017}) 14. a3 {[%emt 0:01:00]} (14. Ng1 $11) 14... Nc5 $17 15. Ba2 {[%emt 0:00:00]} c6 {[%emt 0:04:20]} 16. O-O {[%emt 0:01:00]} (16. Nd2 $1 $15) 16... Ne6 (16... Nh5 $17 17. Nd2 Qf6) 17. Nd2 {[%emt 0:00:00]} (17. Ng3 $15) 17... Nc5 {[%emt 0:00:00]} 18. Nb1 Ne6 19. Nd2 $1 {[%emt 0:00:00]} Bc7 {[%emt 0:05:12]} (19... Ng5 $1 $17 {[%cal Og5h3] aiming for ...Nxh3+!} 20. Nd4 Qb6) 20. Nb1 $2 {[%emt 0:00:00]} (20. Re1 $11 {and White has nothing to worry.}) 20... Bd6 (20... Qd6 21. f4 $17) (20... Re8 $19 21. Nd2 Ng5) 21. Nd2 $1 {[%emt 0:00:00]} Bc7 {[%emt 0:00:00]} (21... Ng5 $1 $17 {[%cal Rg5h3]}) 22. Nb1 $19 {[%emt 0:00:00]} Bd6 (22... Qd6 23. f4 $17) (22... Re8 $19 23. Nbc3 Qd6) 23. Nd2 $1 $17 {[%emt 0:00:00]} Bc7 {[%emt 0:00:00]} 24. Nb1 {[%emt 0:00:00]} Bd6 (24... Re8 $142 25. Nd2 Ng5) 25. Nd2 $1 {[%emt 0:00:00]} Bc7 {[%emt 0:00:00]} (25... Ng5 $1 $17) 26. Nb1 $19 {[%emt 0:00:00]} Bd6 (26... Qd6 27. f4 $17) (26... Re8 $19 27. Ng3 Nd4) 27. Nd2 $1 $17 {[%emt 0:00:00] [#]} Bc7 {[%emt 0:00:00]} (27... Ng5 $142 $1 {[%cal Rg5h3]}) 28. Nb1 {[%emt 0:00:00]} Bd6 (28... Nh5 $142 {White must now prevent ...Qd6.} 29. c4 dxc4 30. Bxc4 b5) 29. Nd2 $1 {[%emt 0:00:00]} Bc7 {[%emt 0:00:38]} (29... Ng5 $142) 30. Nb1 {[%emt 0:00:00]} Bd6 (30... Re8 $142 {Threatens to win with ...Qd6.} 31. Nd2 Ng5) 31. Nd2 $1 {[%emt 0:00:00]} Bc7 {[%emt 0:06:00]} ({Black should try} 31... Ng5 $17) 32. Nf3 Nh5 {[%emt 0:00:28]} 33. Be3 {[%emt 0:08:30]} Qf6 {[%emt 0:04:41]} 34. c3 {[%emt 0:00:00]} (34. c4 $11) 34... g5 ({Better is} 34... Nef4 $17 {[%cal Of4h3] ...Nxh3+! is the strong threat.} 35. Nxf4 Nxf4 36. Bxf4 Bxf4) 35. c4 {[%emt 0:00:00]} dxc4 {[%emt 0:13:21]} (35... Nhf4 $5 {[%cal Rf4h3]}) 36. dxc4 Rd8 {[%emt 0:04:56]} 37. Qc2 {[%emt 0:00:00]} Rf8 {[%emt 0:00:00]} (37... Nef4 $11 {keeps the balance.} 38. Nxf4 Nxf4) 38. Qd1 (38. Bb1 Qg7 $14) (38. Rae1 $16) 38... Rd8 {[%emt 0:01:00]} (38... Nhf4 {simplifies} 39. Bxf4 Nxf4 40. Nxf4 Bxf4 41. Qd4 Qxd4 42. Nxd4 g4) 39. Qc2 Nef4 {[%emt 0:02:54]} 40. Qd1 $2 {[%emt 0:00:00][%mdl 8192]} Ne6 $2 {[%emt 0:00:00]} (40... Rxd1 $19 41. Nxf4 Rxa1 42. Nxh5 Rxf1+ 43. Kxf1 Qxb2) 41. Qc2 $11 Nef4 $2 {[%emt 0:11:49][%mdl 8192]} (41... Nhf4 $11 42. Bb1 Nxe2+ 43. Qxe2 Nf4 44. Bxf4 (44. Qc2 Qh6 $11) 44... Bxf4) 42. Qd1 $19 {[%emt 0:00:00]} Ne6 {[%emt 0:17:17]} (42... Rxd1 $19 43. Rfxd1 Nxg2) 43. Qc2 $11 Nef4 (43... Nhf4 $5 {[%cal Rf4h3]} 44. Bb1 Nxe2+ 45. Qxe2 Nf4 46. Bxf4 (46. Qc2 Qh6 $11) 46... Bxf4 $11) 44. Nxf4 {[%emt 0:02:28]} Nxf4 45. Bb1 $1 {[%emt 0:06:48]} Nh5 $2 {[%emt 0:03:54][%mdl 8192] Active counter play!} (45... Qg7 $11) 46. Ba2 $2 (46. Qxh7+ $18 Kf8 47. Bxg5) 46... Nf4 {[%cal Of4h3]} (46... g4 {keeps more tension.} 47. hxg4 Bxg4 48. Bb1 Qg7) 47. Bb1 $1 {[%emt 0:01:00]} Qh6 {With the idea ...g4.} 48. Bxf4 {[%emt 0:02:24]} (48. Re1 {simplifies} Nxg2 49. Qxh7+ Qxh7 50. Bxh7+ Kxh7 51. Kxg2 Kg6 52. Bxg5 Rh8 53. Bh4) 48... Bxf4 49. Qe4 {[%emt 0:04:25]} Bc7 {[%emt 0:52:05]} (49... Bd7 $15) 50. Qc2 $2 {[%mdl 8192]} (50. Qe7 $14 Rd7 51. Qxg5+ (51. Qe8+ Kg7 $14) 51... Qxg5 52. Nxg5) 50... Bf4 $2 (50... g4 $19 51. Nh2 gxh3) 51. Qe4 {[%emt 0:01:00]} Bc7 {[%emt 0:01:00]} (51... Bd7 $11) 52. Qc2 $2 (52. Qe7 $14 Rd7 53. Qxg5+ (53. Qe8+ Kg7 $14) 53... Qxg5 54. Nxg5) 52... Bf4 {[%emt 0:00:00]} (52... g4 $19 53. Nh2 gxh3) 53. Qe4 $15 {[%emt 0:00:00]} Bc7 {[%emt 0:01:00]} (53... Bd7 $15 54. g3 Bxh3) 54. Qc2 $2 (54. Qe7 $14 {stays ahead.} Rd7 55. Qe3 (55. Qxg5+ Qxg5 56. Nxg5 Rd2 $14) (55. Qe8+ Kg7 $14)) 54... Bf4 $2 {[%emt 0:00:00]} ({Black should play} 54... g4 $19 55. Nh2 gxh3) 55. Qe4 g4 56. hxg4 {[%emt 0:08:22]} (56. Nh4 $1 $11) 56... Bxg4 $17 {[%emt 0:00:00]} 57. g3 {[%emt 0:00:21]} Re8 {[%emt 0:02:00]} 58. Ne5 {[%emt 0:07:37]} Rxe5 $40 {[%emt 0:00:00][%mdl 128] Black has strong attack. Dancing on a razor blade.} ({But not} 58... Bxe5 $6 59. Qxg4+ Qg7 60. Qxg7+ Bxg7 61. Ra2 $11) 59. Qxf4 {[%emt 0:00:15]} Qxf4 {[%emt 0:00:00]} 60. gxf4 {[%emt 0:08:50]} Re2 {[%emt 0:00:00]} 61. b4 {[%emt 0:00:30]} (61. f3 $142) 61... Rd8 {[%emt 0:00:00]} 62. Kg2 {[%emt 0:00:00]} Rdd2 {[%emt 0:00:00]} 63. Kg3 {[#]} Be6 $1 {[%emt 0:00:00]} 64. Kg2 {[%emt 0:00:00]} (64. c5 $17) 64... Bg4 $2 {[%emt 0:00:00]} (64... Bxc4 $2 {perishes.} 65. Kg3 $19) (64... Kg7 $19 65. Kg3 Bxc4) 65. Kg3 Be6 $2 {[%emt 0:00:00]} (65... Bd7 $17 66. Rh1 f5) 66. Kg2 $1 $19 {[%emt 0:00:00]} Bg4 {[%emt 0:00:00]} (66... Bxc4 $2 {too greedy.} 67. Kg3 $19) (66... Kg7 $19 67. Kg3 Bxc4) 67. Kg3 $17 Be6 {[%emt 0:00:00]} (67... Bd7 $17 68. f5 Kg7) 68. Kg2 $1 $19 {[%emt 0:00:00]} Bg4 {[%emt 0:00:00]} (68... Kg7 $19 {has better winning chances.} 69. Kg3 Bxc4) 69. Kg3 $17 Be6 {[%emt 0:00:00]} (69... Bc8 $17 70. f5 Kg7) 70. Kg2 $1 $19 {[%emt 0:00:00]} Bg4 {[%emt 0:00:00]} (70... Kg7 $19 {and Black stays clearly on top.} 71. Kg3 Bxc4) 71. Kg3 $17 Be6 (71... Bd7 $17 72. f5 Kg7) 72. c5 {[%emt 0:05:30] Black keeps a firm grip on the game.} (72. Kg2 $1 $11 {was the only way to keep the balance.}) 72... f5 {[%emt 0:00:00]} 73. Kh4 $2 {[%emt 0:00:30]} (73. a4 $17) 73... Rxf2 74. Rxf2 {[%emt 0:00:00]} Rxf2 $19 {[%emt 0:00:00][%mdl 4096] Endgame KRB-KRB} 75. Kg5 $2 {[%emt 0:00:00]} (75. Bd3) 75... Rd2 $2 {[%emt 0:00:00]} (75... Kf7 $19 76. Bxf5 Rg2+ 77. Kh4 Bxf5) 76. Kh4 $2 {[%mdl 8192]} (76. Kf6 $11) 76... Rf2 {[%emt 0:00:00]} 77. Kg5 {[%emt 0:00:00]} Rd2 $2 {[%emt 0:00:00]} (77... Kg7 $19 78. Bd3 Rh2 79. Bxf5 Rg2+ 80. Kh4 Bxf5) 78. Kh4 $2 {[%mdl 8192]} (78. Kf6 $11) 78... Rf2 {[%emt 0:00:00]} 79. Kg5 Rf1 {[%emt 0:00:00]} 80. Kh4 {[%emt 0:03:30]} Rf2 {[%emt 0:00:00]} 81. Kg5 Rf1 $2 {[%emt 0:00:00]} (81... Kg7 $19 82. Ba2 Rg2+ 83. Kh4 Rh2+ 84. Kg3 Rxa2) 82. Bxf5 $2 {[%emt 0:00:00][%mdl 8192]} (82. Kh4 $11 Kg7 83. a4) 82... Rxa1 {Black is clearly winning.} 83. Bxe6+ $11 {[%emt 0:00:00] KR-KB} Kg7 {[%emt 0:00:00]} 84. Bc8 {[%emt 0:00:00]} b6 {[%emt 0:00:00]} 85. Bb7 {[%emt 0:00:00]} bxc5 {[%emt 0:00:00]} 86. bxc5 {[%emt 0:00:12]} Rxa3 {[%emt 0:14:30]} 87. f5 {[%emt 0:00:30]} h6+ {[%emt 0:00:00] Weighted Error Value: White=0.45/Black=0.88} 0-1

[Event "Bangabandhu Premier Div League 2022"]
[Site "Dhaka"]
[Date "2022.11.30"]
[Round "1.15"]
[White "Rakhmanov, Aleksandr"]
[Black "Abdul, Momin"]
[Result "1-0"]
[ECO "D35"]
[WhiteElo "2630"]
[BlackElo "1900"]
[Annotator "TA"]
[PlyCount "201"]
[EventDate "2022.11.30"]
[EventType "team-tourn"]
[EventCountry "BAN"]
[SourceTitle "playchess.com"]
[Source "ChessBase"]
[SourceQuality "1"]
[TimeControl "40/5400+30:1800+30"]

{[%evp 20,201,36,26,104,26,31,28,35,39,45,37,69,71,72,-358,0,0,74,-345,0,0,52,-346,0,0,56,-352,0,0,62,-340,0,0,66,63,57,66,158,0,38,0,152,0,43,0,155,0,53,0,155,150,1564,0,78,0,1537,0,63,0,1527,0,66,0,1525,0,64,0,202,206,210,210,261,0,66,0,258,0,61,0,266,0,54,0,245,0,39,0,180,195,308,79,335,0,335,333,325,235,355,0,338,329,345,285,925,0,329,283,285,289,278,-172,265,0,289,266,332,334,334,335,422,0,324,0,420,0,319,0,402,0,316,0,322,310,383,382,515,500,545,527,510,486,901,483,590,596,586,579,618,601,956,955,895,789,895,858,1338,1348,1369,1244,1308,1304,1120,1120,1000,945,29981,29982,29982,29983,29982,29983,29985,29986,29986,29987,29987,29988,29988,29989,29989,29990,29991,29991]} 1. d4 {[%emt 1:31:00]} d5 {[%emt 0:10:40]} 2. c4 {[%emt 0:00:00]} e6 3. Nc3 {[%emt 0:00:00]} Nf6 4. cxd5 exd5 {[%emt 0:00:30]} 5. Bg5 Be7 {[%emt 0:00:38]} 6. e3 {[%emt 0:02:30]} Nbd7 {[%emt 0:01:56]} 7. Bd3 {[%emt 0:00:00]} Nb8 {[%emt 0:00:00]} 8. Bf1 Nbd7 {[%emt 0:01:00]} 9. Bd3 {[%emt 0:00:00]} O-O {9...Nf8 is setting a new trend.} 10. Nf3 {[%emt 0:00:00]} c5 {[%emt 0:00:53]} 11. O-O Re8 {D35: Queen's Gambit Declined: Exchange Variation.} (11... b6 $11) 12. h3 $5 {[%emt 0:00:00][%mdl 4] White has more active pieces. The black rooks are badly placed. Exploring less charted territory.} (12. Bb5 $16) 12... c4 {[%emt 0:02:28]} 13. Bc2 {[%emt 0:03:30]} a6 {White has an edge.} 14. a4 {[%emt 0:00:00] [#] Prevents b5.} (14. Ne5 {with more complications.} b5 15. Nxd7 Bxd7 16. Bxf6 Bxf6 17. Qh5) 14... Qc7 $146 {Inhibits Ne5.} ({Predecessor:} 14... Qa5 15. Qe2 Bb4 16. Na2 Bd6 17. Nc3 Qc7 18. Bh4 b6 19. Nd2 Bb7 20. Qf3 Bc6 21. e4 dxe4 22. Ndxe4 Nxe4 23. Bxe4 Bxe4 24. Nxe4 {0-1 (54) Olivier,T (1760)-Ramasindraibe,G (1982) St Denis 2012}) 15. Nh4 {[%emt 0:00:00]} h6 {[%emt 1:19:55]} 16. Bf4 {[%emt 0:00:00]} Bd6 {[%emt 0:00:00]} 17. Bg5 {[%emt 0:00:00][%mdl 8192]} Be7 $2 (17... hxg5 $19 18. Nf3 Nf8 19. Nxg5 Ne6 20. Nxe6 Bxe6) 18. Bf4 $16 {[%emt 0:00:00]} Bd6 {[%emt 0:00:00]} 19. Bg5 $2 {[%emt 0:00:00][%mdl 8192]} Be7 $2 (19... hxg5 $19 20. Nf5 Bf8) 20. Bf4 $14 {[%emt 0:00:00]} Bd6 {[%emt 0:00:00]} 21. Bg5 $2 {[%emt 0:00:00][%mdl 8192]} Be7 $2 (21... hxg5 $19 22. Nf3 Nf8 23. Nxg5 Ne6) 22. Bf4 {[%emt 0:00:00]} Bd6 {[%emt 0:00:00]} 23. Bg5 $2 {[%emt 0:00:00][%mdl 8192]} Be7 $2 (23... hxg5 $19 24. Nf3 Nf8 25. Nxg5 Ne6 26. Nxe6 Bxe6) 24. Bf4 {[%emt 0:00:00]} Bd6 {[%emt 0:00:00]} 25. Bg5 $2 {[%emt 0:00:00][%mdl 8192]} Be7 $2 (25... hxg5 $19 26. Nf3 Nf8 27. Nxg5 Ne6 28. Nxe6 Bxe6) 26. Bf4 {[%emt 0:00:00]} Bd6 {[%emt 0:00:00]} 27. Bxd6 {[%emt 0:00:00]} Qxd6 {[%emt 0:00:00]} 28. Nf5 {[%emt 0:00:00]} Qc7 {[%emt 0:00:00]} (28... Qc6 $14) 29. Nh4 {[%emt 0:00:00]} (29. Qf3 $1 $16) 29... Qd6 {[%emt 0:00:00]} 30. Nf5 (30. Re1 $14) 30... Qc7 $1 $16 {[%emt 0:00:00]} 31. Nh4 {[%emt 0:00:00]} (31. Qf3 $1 $16) 31... Qd6 $14 {[%emt 0:00:00]} 32. Nf5 {[%emt 0:00:00]} (32. Rb1 $14) 32... Qc7 $1 $16 {[%emt 0:00:00]} 33. Nh4 {[%emt 0:00:00]} (33. Qf3 $1 $16) 33... Qd6 $14 {[%emt 0:00:00]} 34. Nf5 {[%emt 0:00:00]} (34. Rb1 $14) 34... Qc7 $16 {[#]} 35. Qf3 $1 {[%emt 0:00:00]} Qd6 $2 {[%emt 0:00:00]} (35... Rb8 $16 36. Nxd5 Nxd5) 36. Qd1 $2 {[%emt 0:00:00]} (36. Nxd6 $18 {is the precise move to win.} Re6 37. Nf5) 36... Qc7 37. Qf3 $2 {[%emt 0:00:00][%mdl 8192]} (37. Ng3 $16) 37... Qd6 $1 $18 {[%emt 0:00:00]} 38. Qd1 $2 {[%emt 0:00:00]} (38. Nxd6 $18 Re6 39. Nf5) 38... Qc7 $14 39. Qf3 $2 {[%emt 0:00:00][%mdl 8192]} (39. Ng3 $14) 39... Qd6 $1 $18 {[%emt 0:00:00]} 40. Qd1 $2 {[%emt 0:00:00]} (40. Nxd6 $18 Re6 41. Nf5) 40... Qc7 $14 41. Qf3 $2 {[%emt 0:00:00][%mdl 8192]} (41. Ng3 $14) 41... Qd6 $1 $18 {[%emt 0:43:00]} 42. Qd1 $2 {[%emt 0:00:00]} ({Only move:} 42. Nxd6 $18 Re6 43. Nf5) 42... Qc7 $1 $14 43. Qf3 {[%emt 0:00:00]} ({White should try} 43. a5 $14) 43... Qc6 $2 (43... Qd6 $1 $11) 44. Qg3 $18 {[%csl Gf5,LRg7,LRh6][%cal Rg3g7]} Nh5 {[%emt 0:00:00] [#]} 45. Qd6 {[%emt 0:00:00]} ({Less strong is} 45. Qg4 Ndf6 46. Qf3 (46. Nxh6+ Kf8 $11) 46... Bxf5 47. Bxf5 g6 $14) 45... Nhf6 {[%emt 0:02:00]} 46. Qg3 (46. Ne7+ $18 Rxe7 47. Qxe7) 46... Nh5 $14 {[%emt 0:00:00]} 47. Qd6 $40 {[%emt 0:00:00][%mdl 128] White mounts an attack.} (47. Qh2 $1 $14) 47... Nhf6 $1 $18 {[%emt 0:01:00]} 48. Qg3 $2 (48. Ne7+ $18 Rxe7 49. Qxe7) 48... Nh5 $14 {[%emt 0:00:00]} 49. Qd6 {[%emt 0:00:00]} (49. Qh2 $14) 49... Nhf6 $1 $18 {[%emt 0:01:00]} 50. Qg3 $2 ({Better is} 50. Ne7+ $18 Rxe7 51. Qxe7) 50... Nh5 $14 {[%emt 0:00:00]} 51. Qd6 {[%emt 0:00:00]} (51. Qh2 $1 $14) 51... Nhf6 $1 $18 {[%emt 0:01:00]} 52. Qg3 $2 (52. Ne7+ $18 Rxe7 53. Qxe7) 52... Nh5 $14 {[%emt 0:00:00]} 53. Qd6 {[%emt 0:50:00]} Qxd6 {[%emt 0:00:00]} (53... Nhf6 $1 $11 {and Black is okay.}) 54. Nxd6 $18 {[%emt 0:00:00]} Rd8 {[%emt 0:00:00]} (54... Re6 $142) 55. Nf5 $2 {[%emt 0:00:00]} (55. Nxd5 $18 {is more deadly.} Kf8 56. Nxc4) 55... Re8 {[%mdl 8192]} (55... Nb6 $16 {was worth a try.}) 56. Nd6 {[%emt 0:00:00]} Rd8 57. Nxd5 {[%emt 0:00:00]} Kf8 {[%emt 0:00:00]} 58. Nc3 {[%emt 0:00:00]} Kg8 (58... Nb6 {might work better.}) 59. Nd5 {[%emt 0:00:00]} Kf8 $1 {[%emt 0:04:00]} 60. Nxc4 {[%emt 0:00:00]} Rb8 61. Ndb6 {[%emt 0:00:00]} Ra8 $2 {[%emt 0:01:00]} (61... Nhf6 62. Rfc1 Nxb6 63. Nxb6 Be6) 62. Nd5 $2 {[%emt 0:00:00]} (62. Nxa8 Nb8 63. Nab6) 62... Rb8 $1 63. Ncb6 {[%emt 0:00:00]} Nxb6 64. Nxb6 Be6 {[%emt 0:00:00]} 65. Nd5 $4 {[%emt 0:00:00][%mdl 8192]} Bc8 $4 {[%mdl 8192]} (65... Bxd5 $19 {avoids the disaster.} 66. Rfc1 Nf6) 66. Nb6 Be6 {[%emt 0:00:00]} 67. a5 {[%emt 0:00:00]} f5 68. Rfc1 {[%emt 0:00:00]} Nf6 {[%emt 0:00:00]} 69. Bd3 {[%emt 0:00:00]} Nh5 {[%emt 0:00:00]} 70. Bc2 {[%emt 0:00:00]} Nf6 {[%emt 0:00:00]} 71. Bd3 {[%emt 0:00:00] Against f4} Nh5 $1 {[%emt 0:00:00]} 72. Bc2 {[%emt 0:00:00]} Nf6 {[%emt 0:00:00]} 73. Bd3 {[%emt 0:00:00] Prevents f4.} Nh5 $1 {[%emt 0:00:00]} 74. Bc2 {[%emt 0:00:00]} Nf6 {[%emt 0:00:00]} 75. Bd3 $2 {[%emt 0:00:00] Against f4} (75. b4 $18) 75... f4 $2 {[%emt 0:00:00][%mdl 8192]} (75... Nh5 $1 $11 76. Rc5 g6) 76. Rc7 ({Not} 76. exf4 Rxd4 77. Bc4 Re8 78. Bxe6 Rxe6 $18) 76... fxe3 {[%emt 0:00:00]} 77. fxe3 {[%emt 0:12:00]} Nd5 {[%emt 0:00:00]} 78. Nxd5 {[%emt 0:00:00]} Bxd5 {[%emt 0:00:00]} 79. Bh7 {[%emt 0:00:00] White wants to mate with Rf1+.} Rd6 80. e4 {[%emt 0:00:00]} Rf6 {[%emt 0:00:00]} (80... Bf7 $142 81. Rf1 Rf6) 81. Rf1 {[%emt 0:00:00]} Bc6 {[%emt 0:00:00]} 82. Rxf6+ {[%emt 0:00:00]} gxf6 {[%emt 0:00:00][%mdl 4096] Endgame KRB-KRB} 83. Bg6 {[%emt 0:00:00]} Kg8 {[%emt 0:00:00]} 84. Bf5 Re8 {[%emt 0:00:00]} 85. d5 {[%emt 0:00:00][%cal Bd4d5,Bd5d6,Bd6d7][%mdl 32]} Bb5 {[%emt 0:00:00]} 86. Rxb7 {[%emt 0:00:00]} Bd3 {[%emt 0:00:00]} 87. d6 {[%emt 0:00:00] And now Kf2 would win.} Bb5 {[%emt 0:00:00]} 88. d7 {[%emt 0:00:00]} Rd8 {[%emt 0:00:00]} 89. Rc7 {[%emt 0:00:00] Threatening mate with Rc8.} Kf8 {[%emt 0:00:00]} 90. Rc8 {[%emt 0:00:00]} Ke7 {[%emt 0:00:00]} 91. Rxd8 {[%emt 0:00:00]} Kxd8 {[%emt 0:00:00]} 92. Kf2 {[%emt 0:00:00]} Bxd7 {[%emt 0:00:00]} 93. Bxd7 {[%emt 0:00:00] White mates.} Kxd7 {[%emt 0:00:00] KP-KP} 94. Ke3 {[%emt 0:00:00]} Kc6 {[%emt 0:00:00]} 95. Kf4 {[%emt 0:00:00]} Kb5 {[%emt 0:00:00]} 96. Kf5 {[%emt 0:00:00]} Kxa5 {[%emt 0:00:00]} 97. Kxf6 {[%emt 0:00:00]} Kb4 {[%emt 0:00:00]} 98. e5 {[%emt 0:00:00]} Kb3 {[%emt 0:00:00]} 99. e6 {[%emt 0:00:00]} Kxb2 {[%emt 0:00:00]} 100. e7 {[%emt 0:00:00]} a5 {[%emt 0:00:00]} 101. e8=Q {[%emt 0:00:00] Weighted Error Value: White=1.62/Black=0.60} 1-0